fUSD/lending_fUSD_20260216
["ID","MTS","AMOUNT","RATE_DAILY","PERIOD"]
[405568240,1771200113571,157.0,0.00015,10]
[405568241,1771200123829,501.408474,0.00014525,2]
[405568242,1771200171376,-1200.0,0.00014599,2]
[405568243,1771200171408,-150.0,0.00014599,2]
[405568244,1771200171438,-271.0,0.00014599,2]
[405568245,1771200171467,-8295.33134469,0.000146,2]
[405568246,1771200171497,-1000.0,0.000146,2]
[405568247,1771200171525,-10000.0,0.000146,2]
[405568248,1771200171555,-500.0,0.000146,2]
[405568249,1771200171583,-500.0,0.000146,2]
[405568250,1771200171610,-500.0,0.000146,2]
[405568251,1771200171638,-500.0,0.000146,2]
[405568252,1771200171665,-500.0,0.000146,2]
[405568253,1771200171693,-500.0,0.000146,2]
[405568254,1771200171721,-500.0,0.000146,2]
[405568255,1771200171749,-500.0,0.000146,2]
[405568256,1771200172223,-167.33731062,0.000146,2]
[405568257,1771200233674,-32.9509976,0.000146,2]
[405568258,1771200233698,-336.0490024,0.000146,2]
[405568259,1771200318295,-166.82578928,0.00014599,2]
[405568260,1771200318323,-300.0,0.000146,2]
[405568261,1771200318352,-163.9509976,0.000146,2]
[405568262,1771200318378,-177.56627551,0.000146,2]
[405568263,1771200318406,-195.0,0.00014656,2]
[405568264,1771200318434,-250.0,0.00014656,2]
[405568265,1771200318461,-300.0,0.00014698,2]
[405568266,1771200318488,-1200.0,0.00014698,2]
[405568267,1771200318517,-500.0,0.00014699,2]
[405568268,1771200318544,-500.0,0.00014699,2]
[405568269,1771200318576,-500.0,0.00014699,2]
[405568270,1771200318605,-500.0,0.00014699,2]
[405568271,1771200318636,-500.0,0.00014699,2]
[405568272,1771200318664,-500.0,0.00014699,2]
[405568273,1771200318692,-500.0,0.00014699,2]
[405568274,1771200318721,-500.0,0.00014699,2]
[405568275,1771200318750,-500.0,0.00014699,2]
[405568276,1771200318779,-500.0,0.00014699,2]
[405568277,1771200318807,-500.0,0.00014699,2]
[405568278,1771200318834,-500.0,0.00014699,2]
[405568279,1771200318862,-500.0,0.00014699,2]
[405568280,1771200318888,-427.44343843,0.00014699,2]
[405568281,1771200318915,-166.82578928,0.00014756,2]
[405568282,1771200318942,-195.0,0.00014781,2]
[405568283,1771200318971,-500.0,0.00014799,2]
[405568284,1771200318999,-500.0,0.00014799,2]
[405568285,1771200319029,-500.0,0.00014799,2]
[405568286,1771200319056,-500.0,0.00014799,2]
[405568287,1771200319084,-150.0,0.00014898,2]
[405568288,1771200319434,-245.39,0.00014899,2]
[405568289,1771200319464,-166.82578928,0.00014912,2]
[405568290,1771200319495,-500.0,0.00014993,2]
[405568291,1771200319523,-500.0,0.00014993,2]
[405568292,1771200319550,-500.0,0.00014993,2]
[405568293,1771200319582,-590.5006105,0.00014993,2]
[405568294,1771200319613,-200.0,0.00014993,2]
[405568295,1771200319641,-200.0,0.00014993,2]
[405568296,1771200319669,-500.0,0.00014993,2]
[405568297,1771200319699,-151.0,0.00014993,2]
[405568298,1771200319727,-151.0,0.00014993,2]
[405568299,1771200319755,-151.0,0.00014993,2]
[405568300,1771200319783,-151.0,0.00014993,2]
[405568301,1771200319812,-151.0,0.00014993,2]
[405568302,1771200319840,-151.0,0.00014993,2]
[405568303,1771200319871,-151.0,0.00014993,2]
[405568304,1771200319899,-151.0,0.00014993,2]
[405568305,1771200319928,-151.0,0.00014993,2]
[405568306,1771200319956,-151.0,0.00014993,2]
[405568307,1771200319986,-151.0,0.00014993,2]
[405568308,1771200351617,500.0,0.000146,2]
[405568317,1771200414186,-217.61561231,0.00015001,2]
[405568318,1771200414222,-300.0,0.00015001,2]
[405568319,1771200414257,-300.0,0.00015001,2]
[405568320,1771200421541,300.0,0.00015001,2]
[405568324,1771200449418,151.0,0.00014993,2]
[405568325,1771200449591,151.0,0.00014993,2]
[405568326,1771200450239,151.0,0.00014993,2]
[405568327,1771200450912,151.0,0.00014993,2]
[405568328,1771200451427,151.0,0.00014993,2]
[405568329,1771200452060,151.0,0.00014993,2]
[405568330,1771200452705,151.0,0.00014993,2]
[405568331,1771200453773,151.0,0.00014993,2]
[405568332,1771200454284,2471.2571537,0.00014807,2]
[405568333,1771200454406,151.0,0.00014993,2]
[405568334,1771200455035,151.0,0.00014993,2]
[405568335,1771200455661,151.0,0.00014993,2]
[405568336,1771200460225,-150.99,0.00015002,2]
[405568337,1771200460255,-999.99,0.00015002,2]
[405568338,1771200460288,-299.99,0.00015002,2]
[405568339,1771200460544,-0.02,0.00015002,2]
[405568340,1771200461036,-1382.64583517,0.00015002,2]
[405568341,1771200461207,-8617.32416483,0.00015002,2]
[405568342,1771200461217,-1343.65,0.00015002,2]
[405568343,1771200461227,-39.01583517,0.00015012,2]
[405568344,1771200462524,5000.01,0.00014699,2]
[405568345,1771200462551,5000.01,0.00014699,2]
[405568346,1771200462576,5000.01,0.00014699,2]
[405568347,1771200462602,5000.01,0.00014699,2]
[405568348,1771200462632,5000.01,0.00014699,2]
[405568349,1771200462657,5000.01,0.00014699,2]
[405568350,1771200462683,5000.01,0.00014699,2]
[405568351,1771200462708,5000.01,0.00014699,2]
[405568352,1771200462736,15487.34262024,0.00014699,2]
[405568353,1771200465311,-10000.01,0.00014699,2]
[405568354,1771200465403,-10000.01,0.00014699,2]
[405568355,1771200468484,-10000.01,0.00014699,2]
[405568356,1771200468688,-10000.01,0.00014699,2]
[405568357,1771200468773,-10000.01,0.00014699,2]
[405568358,1771200469055,-10000.01,0.00014699,2]
[405568359,1771200469182,-10000.01,0.00014699,2]
[405568360,1771200469312,-10000.01,0.00014699,2]
[405568361,1771200469428,-10000.01,0.00014699,2]
[405568362,1771200469585,-10000.01,0.00014699,2]
[405568363,1771200469690,-10000.01,0.00014699,2]
[405568364,1771200469794,-10000.01,0.00014699,2]
[405568365,1771200469911,-10000.01,0.00014699,2]
[405568366,1771200470038,-10000.01,0.00014699,2]
[405568367,1771200471699,-10000.01,0.00014699,2]
[405568368,1771200471716,-10000.01,0.00014699,2]
[405568369,1771200471844,-10000.01,0.00014699,2]
[405568370,1771200474331,-10000.01,0.00014699,2]
[405568371,1771200474447,-10000.01,0.00014699,2]
[405568372,1771200475225,-10000.01,0.00014699,2]
[405568373,1771200475284,-10000.01,0.00014699,2]
[405568374,1771200475308,-10000.01,0.00014699,2]
[405568375,1771200475352,-10000.01,0.00014699,2]
[405568376,1771200475399,-10000.01,0.00014699,2]
[405568377,1771200475430,-10000.01,0.00014699,2]
[405568378,1771200475540,-10000.01,0.00014699,2]
[405568379,1771200475619,-10000.01,0.00014699,2]
[405568380,1771200480364,-10000.01,0.00014699,2]
[405568381,1771200480588,-10000.01,0.00014699,2]
[405568382,1771200480843,-10000.01,0.00014699,2]
[405568383,1771200480919,-10000.01,0.00014699,2]
[405568384,1771200481032,-10000.01,0.00014699,2]
[405568385,1771200481128,-10000.01,0.00014699,2]
[405568386,1771200482289,300.0,0.00014698,2]
[405568387,1771200482593,-10000.01,0.00014699,2]
[405568388,1771200482660,-10000.01,0.00014699,2]
[405568389,1771200482733,-10000.01,0.00014699,2]
[405568390,1771200482855,-10000.01,0.00014699,2]
[405568391,1771200482920,-10000.01,0.00014699,2]
[405568392,1771200482951,-10000.01,0.00014699,2]
[405568393,1771200482968,-10000.01,0.00014699,2]
[405568394,1771200482991,-10000.01,0.00014699,2]
[405568395,1771200483008,-10000.01,0.00014699,2]
[405568396,1771200500273,1556.37080003,0.00014599,2]
[405568397,1771200509187,3143.63919997,0.00014599,2]
[405568398,1771200509211,1953.40559058,0.00014599,2]
[405568399,1771200511374,151.0,0.00014696,2]
[405568400,1771200514610,2895.60440942,0.00014599,2]
[405568401,1771200514634,3442.58755321,0.00014599,2]
[405568402,1771200518895,413.45688214,0.00014443,2]
[405568403,1771200530636,361.24975585,0.00014599,2]
[405568404,1771200538381,782.7158088,0.00014599,2]
[405568405,1771200538407,41.70621401,0.00014599,2]
[405568406,1771200541910,300.0,0.00014698,2]
[405568407,1771200542084,150.0,0.00014698,2]
[405568408,1771200543667,4508.30378599,0.00014599,2]
[405568409,1771200543688,1396.81806658,0.00014599,2]
[405568411,1771200570062,3603.19193342,0.00014599,2]
[405568412,1771200570085,5000.01,0.00014599,2]
[405568413,1771200570108,5000.01,0.00014599,2]
[405568414,1771200570130,5000.01,0.00014599,2]
[405568415,1771200570152,5000.01,0.00014599,2]
[405568416,1771200570176,5000.01,0.00014599,2]
[405568417,1771200570198,5000.01,0.00014599,2]
[405568418,1771200570220,5000.01,0.00014599,2]
[405568419,1771200570243,1056.92844792,0.00014599,2]
[405568420,1771200572267,1249.93689798,0.00014599,2]
[405568421,1771200591458,945.91379959,0.00014599,2]
[405568422,1771200591737,1300.5768,0.00014599,2]
[405568423,1771200598973,446.65405451,0.00014599,2]
[405568424,1771200598996,1946.45669459,0.00014599,2]
[405568425,1771200602215,300.0,0.00014698,2]
[405568426,1771200602245,1200.0,0.00014698,2]
[405568427,1771200603329,1553.55330541,0.00011848,2]
[405568428,1771200603356,39.78669459,0.00011848,2]
[405568429,1771200603532,500.0,0.00014599,2]
[405568430,1771200603642,1593.34,0.00012004,2]
[405568431,1771200603877,1593.34,0.0001216,2]
[405568432,1771200604120,1273.54330541,0.00012315,2]
[405568433,1771200604145,319.79669459,0.00012315,2]
[405568434,1771200604323,1593.34,0.00012471,2]
[405568435,1771200604359,248.66190106,0.00014599,2]
[405568436,1771200604536,1593.34,0.00012627,2]
[405568437,1771200605022,1244.87140435,0.00012783,2]
[405568438,1771200605548,348.46859565,0.00012783,2]
[405568439,1771200605692,1593.34,0.00012939,2]
[405568440,1771200608277,157.86011689,0.00014698,2]
[405568441,1771200613614,1593.34,0.00013095,2]
[405568442,1771200614066,1307.00128746,0.00014689,2]
[405568443,1771200614089,871.36871254,0.00014689,2]
[405568444,1771200614270,2178.37,0.00014689,2]
[405568445,1771200614300,1593.34,0.00013251,2]
[405568446,1771200614487,356.93128746,0.00014689,2]
[405568447,1771200614510,1821.43871254,0.00014689,2]
[405568448,1771200614719,1593.34,0.00013407,2]
[405568449,1771200614754,1585.23128746,0.00014689,2]
[405568450,1771200614778,593.13871254,0.00014689,2]
[405568451,1771200614925,1593.34,0.00013563,2]
[405568452,1771200615002,2178.37,0.00014689,2]
[405568453,1771200615126,635.16128746,0.00013718,2]
[405568454,1771200615151,958.17871254,0.00013718,2]
[405568455,1771200615375,1593.34,0.00013874,2]
[405568456,1771200615720,1593.34,0.0001403,2]
[405568457,1771200615914,855.15128746,0.00014186,2]
[405568458,1771200615938,738.18871254,0.00014186,2]
[405568459,1771200616133,1593.34,0.00014342,2]
[405568460,1771200616367,1593.34,0.00014498,2]
[405568461,1771200616601,1075.14128746,0.00014654,2]
[405568462,1771200616625,518.19871254,0.00014654,2]
[405568464,1771200620007,197.90442178,0.00014689,2]
[405568465,1771200629904,3653.0659624,0.00014599,2]
[405568466,1771200631870,-304.03423716,0.00014699,2]
[405568468,1771200631881,-2116.75233148,0.00014699,2]
[405568469,1771200631893,-3158.88510004,0.00014699,2]
[405568472,1771200632047,-598.56,0.00014699,2]
[405568473,1771200632059,-1258.9,0.00014699,2]
[405568474,1771200632071,-920778.34619676,0.00014699,2]
[405568475,1771200632083,-90327.23513747,0.00014699,2]
[405568476,1771200632095,-245283.99528302,0.00014699,2]
[405568478,1771200632107,-310567.21949237,0.00014699,2]
[405568480,1771200632119,-1254.41808677,0.00014699,2]
[405568483,1771200632130,-382.56411821,0.00014699,2]
[405568490,1771200632212,-371.65095903,0.00014699,2]
[405568497,1771200633755,151.0,0.00014696,2]
[405568499,1771200637987,-27111.64349472,0.00014699,2]
[405568500,1771200638043,-1420997.95294273,0.00014699,2]
[405568501,1771200638053,-1000.0,0.00014699,2]
[405568502,1771200638064,-1000.0,0.00014699,2]
[405568503,1771200638074,-195.0,0.00014699,2]
[405568504,1771200638083,-600.0,0.00014699,2]
[405568505,1771200638093,-801.03815133,0.00014699,2]
[405568506,1771200638103,-1931.97631839,0.00014699,2]
[405568507,1771200638114,-621.76957416,0.00014699,2]
[405568508,1771200638125,-1273.03725037,0.00014699,2]
[405568509,1771200638135,-272.0,0.00014699,2]
[405568510,1771200638145,-257.55,0.000147,2]
[405568511,1771200638154,-195.0,0.00014797,2]
[405568512,1771200638163,-1593.34,0.0001481,2]
[405568513,1771200638174,-39660.19038128,0.00014966,2]
[405568514,1771200638184,-200.0,0.00014993,2]
[405568515,1771200638193,-500.0,0.00014993,2]
[405568516,1771200638203,-200.0,0.00014993,2]
[405568517,1771200638213,-250.0,0.00015,2]
[405568518,1771200638223,-460.98416483,0.00015012,2]
[405568519,1771200638232,-500.0,0.00015012,2]
[405568520,1771200638242,-500.0,0.00015012,2]
[405568521,1771200638251,-500.0,0.00015012,2]
[405568522,1771200638261,-500.0,0.00015012,2]
[405568523,1771200638271,-500.0,0.00015012,2]
[405568524,1771200638281,-500.0,0.00015012,2]
[405568525,1771200638291,-500.0,0.00015012,2]
[405568526,1771200638301,-500.0,0.00015012,2]
[405568527,1771200638310,-500.0,0.00015012,2]
[405568528,1771200638320,-500.0,0.00015012,2]
[405568529,1771200638329,-500.0,0.00015012,2]
[405568530,1771200638338,-500.0,0.00015012,2]
[405568531,1771200638348,-500.0,0.00015012,2]
[405568532,1771200638358,-2393.11074906,0.00015259,2]
[405568533,1771200638368,-500.0,0.00015327,2]
[405568534,1771200638377,-39660.19038128,0.00015333,2]
[405568535,1771200638387,-945.91379955,0.00015424,2]
[405568536,1771200638396,-200.0,0.00015541,2]
[405568537,1771200638406,-500.0,0.00015541,2]
[405568538,1771200638416,-200.0,0.00015541,2]
[405568539,1771200638426,-150.0,0.00015544,2]
[405568540,1771200638435,-1035.0,0.00015591,2]
[405568541,1771200638444,-39660.19038128,0.00015699,2]
[405568542,1771200638454,-1351.0,0.00015749,2]
[405568543,1771200638464,-500.0,0.00015768,2]
[405568545,1771200638474,-228.52,0.00015777,2]
[405568547,1771200638483,-1033.0,0.00015781,2]
[405568548,1771200638493,-208.0,0.00015812,2]
[405568549,1771200638502,-1600.0,0.00015816,2]
[405568550,1771200638512,-255.0,0.0001583,2]
[405568551,1771200638522,-291.0,0.00015835,2]
[405568552,1771200638531,-151.0,0.00015852,2]
[405568553,1771200638542,-472.0,0.00015852,2]
[405568554,1771200638551,-500.0,0.00015852,2]
[405568555,1771200638561,-5156.23,0.00015852,2]
[405568556,1771200638571,-288.0,0.00015866,2]
[405568557,1771200638581,-947.0,0.00015878,2]
[405568558,1771200638591,-500.0,0.000159,2]
[405568559,1771200638601,-2393.11074906,0.00015919,2]
[405568560,1771200638611,-603.0,0.00015926,2]
[405568561,1771200638621,-198.0,0.00015926,2]
[405568562,1771200638632,-19906.44,0.00015926,2]
[405568563,1771200638645,-961.0,0.00015958,2]
[405568564,1771200638654,-150.0,0.00015958,2]
[405568565,1771200638664,-150.0,0.00016012,2]
[405568566,1771200638674,-247.88,0.00016027,2]
[405568567,1771200638686,-300.0,0.00016059,2]
[405568568,1771200638696,-284.28346063,0.00016059,2]
[405568569,1771200638706,-195.0,0.00016059,2]
[405568570,1771200638715,-39660.19038128,0.00016066,2]
[405568571,1771200638725,-200.0,0.00016089,2]
[405568572,1771200638735,-500.0,0.00016089,2]
[405568573,1771200638744,-202.27978627,0.00016089,2]
[405568574,1771200638755,-420.0,0.00016091,2]
[405568575,1771200638765,-463.14067856,0.000161,2]
[405568576,1771200638775,-272.36052734,0.000161,2]
[405568577,1771200638785,-4128.404,0.000161,2]
[405568578,1771200638795,-37173.0975,0.000161,2]
[405568579,1771200638804,-340.65236914,0.000161,2]
[405568580,1771200638814,-500.0,0.00016126,2]
[405568581,1771200638824,-1680.0,0.00016168,2]
[405568582,1771200638834,-195.0,0.00016169,2]
[405568583,1771200638844,-250.0,0.00016169,2]
[405568584,1771200638854,-600.0,0.00016169,2]
[405568585,1771200638864,-5000.0,0.00016169,2]
[405568586,1771200638874,-300.89888258,0.00016169,2]
[405568587,1771200638883,-195.0,0.00016169,2]
[405568588,1771200638893,-600.0,0.00016169,2]
[405568589,1771200638903,-500.0,0.00016169,2]
[405568590,1771200638912,-300.0,0.00016169,2]
[405568591,1771200638922,-193.0,0.00016169,2]
[405568592,1771200638931,-250.0,0.00016169,2]
[405568593,1771200638941,-166.66,0.00016185,2]
[405568594,1771200638950,-500.0,0.00016199,2]
[405568595,1771200638960,-408.87,0.00016199,2]
[405568596,1771200638969,-269.19335102,0.000162,2]
[405568597,1771200638979,-195.88,0.00016219,2]
[405568598,1771200638989,-1249.93689798,0.0001625,2]
[405568599,1771200638998,-945.91379955,0.0001625,2]
[405568600,1771200639008,-3653.06596239,0.0001625,2]
[405568601,1771200639018,-776.21,0.00016284,2]
[405568602,1771200639027,-1632.98,0.00016357,2]
[405568603,1771200639036,-500.0,0.000164,2]
[405568604,1771200639046,-39660.19038128,0.00016433,2]
[405568605,1771200639056,-1000.0,0.00016499,2]
[405568606,1771200639065,-250.0,0.00016501,2]
[405568607,1771200639075,-776.21,0.00016558,2]
[405568608,1771200639083,-2393.11074906,0.0001658,2]
[405568609,1771200639091,-242.75650984,0.00016637,2]
[405568610,1771200639101,-228.52,0.00016653,2]
[405568611,1771200639111,-257.39498804,0.00016674,2]
[405568612,1771200639120,-166.66,0.0001672,2]
[405568613,1771200639130,-578.20924308,0.00016787,2]
[405568614,1771200639140,-250.0,0.00016787,2]
[405568615,1771200639150,-500.0,0.00016787,2]
[405568616,1771200639160,-500.0,0.00016787,2]
[405568617,1771200639169,-250.0,0.00016787,2]
[405568618,1771200639179,-500.0,0.00016787,2]
[405568619,1771200639188,-500.0,0.00016787,2]
[405568620,1771200639198,-500.0,0.00016787,2]
[405568621,1771200639208,-500.0,0.00016787,2]
[405568622,1771200639217,-500.0,0.00016787,2]
[405568623,1771200639227,-500.0,0.00016787,2]
[405568624,1771200639236,-500.0,0.00016787,2]
[405568625,1771200639246,-500.0,0.00016787,2]
[405568626,1771200639256,-500.0,0.00016787,2]
[405568627,1771200639265,-500.0,0.00016787,2]
[405568628,1771200639275,-209.40437684,0.00016787,2]
[405568629,1771200639285,-500.0,0.00016787,2]
[405568630,1771200639294,-500.0,0.00016787,2]
[405568631,1771200639303,-500.0,0.00016787,2]
[405568632,1771200639312,-174.61919141,0.00016787,2]
[405568633,1771200639322,-500.0,0.00016787,2]
[405568634,1771200639331,-500.0,0.00016787,2]
[405568635,1771200639494,-500.0,0.00016787,2]
[405568636,1771200639518,-500.0,0.00016787,2]
[405568637,1771200639528,-500.0,0.00016787,2]
[405568638,1771200639538,-500.0,0.00016787,2]
[405568639,1771200639548,-500.0,0.00016787,2]
[405568640,1771200639558,-151.0,0.00016787,2]
[405568641,1771200639567,-151.0,0.00016787,2]
[405568642,1771200639577,-151.0,0.00016787,2]
[405568643,1771200639588,-250.0,0.00016787,2]
[405568644,1771200639599,-151.0,0.00016787,2]
[405568645,1771200639609,-250.0,0.00016787,2]
[405568646,1771200639619,-151.0,0.00016787,2]
[405568647,1771200639630,-250.0,0.00016787,2]
[405568648,1771200639644,-151.0,0.00016787,2]
[405568649,1771200639655,-151.0,0.00016787,2]
[405568650,1771200639665,-151.0,0.00016787,2]
[405568651,1771200639677,-151.0,0.00016787,2]
[405568652,1771200639690,-151.0,0.00016787,2]
[405568653,1771200639699,-151.0,0.00016787,2]
[405568654,1771200639710,-209.40437684,0.00016787,2]
[405568655,1771200639720,-258.07423512,0.00016787,2]
[405568656,1771200639730,-162.380719,0.00016787,2]
[405568657,1771200639740,-693.3919763,0.00016787,2]
[405568658,1771200639750,-743.50770149,0.00016787,2]
[405568659,1771200639759,-277.35679052,0.00016787,2]
[405568660,1771200639769,-721.12765535,0.00016787,2]
[405568661,1771200639778,-39660.19038128,0.000168,2]
[405568662,1771200639788,-776.21,0.00016832,2]
[405568663,1771200639798,-719.04747942,0.00016842,2]
[405568664,1771200639808,-2471.2571537,0.00016862,2]
[405568665,1771200639818,-745.65223616,0.00016897,2]
[405568666,1771200639828,-773.2413689,0.00016952,2]
[405568667,1771200639838,-193.0,0.00017,2]
[405568668,1771200639848,-300.0,0.00017,2]
[405568669,1771200639858,-801.85129955,0.00017007,2]
[405568670,1771200639868,-433.0,0.0001705,2]
[405568671,1771200639878,-831.51979763,0.00017062,2]
[405568672,1771200639887,-945.91379955,0.00017075,2]
[405568673,1771200639897,-500.0,0.00017094,2]
[405568674,1771200639907,-776.21,0.00017106,2]
[405568675,1771200639918,-862.28603014,0.00017117,2]
[405568676,1771200639927,-39660.19038128,0.00017166,2]
[405568677,1771200639940,-894.19061326,0.00017172,2]
[405568678,1771200639950,-927.27566595,0.00017227,2]
[405568679,1771200639960,-2393.11074906,0.0001724,2]
[405568680,1771200639969,-166.66,0.00017254,2]
[405568681,1771200639979,-961.58486559,0.00017282,2]
[405568682,1771200639988,-217.15233878,0.00017335,2]
[405568683,1771200639997,-181.08010149,0.00017335,2]
[405568684,1771200640007,-217.15233878,0.00017335,2]
[405568685,1771200640017,-771.01748645,0.00017335,2]
[405568686,1771200640026,-287.61899177,0.00017335,2]
[405568687,1771200640036,-997.16350561,0.00017337,2]
[405568688,1771200640046,-490.21,0.0001738,2]
[405568689,1771200640055,-228.52,0.0001753,2]
[405568690,1771200640065,-39660.19038128,0.00017533,2]
[405568691,1771200640075,-154.38022619,0.000176,2]
[405568692,1771200640084,-587.0,0.00017616,2]
[405568693,1771200640094,-7975.635973,0.0001764,2]
[405568694,1771200640105,-7975.63597295,0.00017669,2]
[405568695,1771200640114,-258.0,0.00017686,2]
[405568696,1771200640124,-7975.63597295,0.00017698,2]
[405568697,1771200640135,-23404.9287,0.000177,2]
[405568698,1771200640146,-1000.0,0.000177,2]
[405568699,1771200640156,-7975.63597295,0.00017727,2]
[405568700,1771200640166,-481.80300107,0.0001774,2]
[405568701,1771200640175,-7975.63597295,0.00017756,2]
[405568702,1771200640185,-214.48368183,0.00017771,2]
[405568703,1771200640195,-2500.0,0.00017773,2]
[405568704,1771200640204,-2351.0,0.00017784,2]
[405568705,1771200640214,-7975.63597295,0.00017784,2]
[405568706,1771200640224,-166.66,0.00017788,2]
[405568707,1771200640234,-1600.0,0.00017793,2]
[405568708,1771200640244,-150.0,0.00017798,2]
[405568709,1771200640253,-1513.7475,0.000178,2]
[405568710,1771200640263,-10166.639,0.000178,2]
[405568711,1771200640274,-160.0,0.00017804,2]
[405568712,1771200640283,-173.48298697,0.00017804,2]
[405568713,1771200640293,-220.0,0.00017808,2]
[405568714,1771200640303,-200.0,0.00017808,5]
[405568715,1771200640313,-7975.63597295,0.00017813,2]
[405568716,1771200640327,-6796.68607778,0.0001783,2]
[405568717,1771200640343,-7975.63597295,0.00017842,2]
[405568718,1771200640353,-500.0,0.00017855,2]
[405568719,1771200640363,-500.0,0.00017855,2]
[405568720,1771200640374,-500.0,0.00017855,2]
[405568721,1771200640384,-7975.63597295,0.00017871,2]
[405568722,1771200640394,-225.18697532,0.00017883,2]
[405568723,1771200640404,-187.78006525,0.00017883,2]
[405568724,1771200640414,-225.18697532,0.00017883,2]
[405568725,1771200640424,-375.71342918,0.00017883,2]
[405568726,1771200640434,-298.26089446,0.00017883,2]
[405568727,1771200640444,-500.0,0.0001789,2]
[405568728,1771200640454,-500.0,0.0001789,2]
[405568729,1771200640464,-500.0,0.0001789,2]
[405568730,1771200640474,-168.25846243,0.0001789,2]
[405568731,1771200640484,-500.0,0.0001789,2]
[405568732,1771200640494,-500.0,0.0001789,2]
[405568733,1771200640509,-296.68,0.00017899,2]
[405568734,1771200640519,-500.0,0.00017899,2]
[405568735,1771200640530,-500.0,0.00017899,2]
[405568736,1771200640540,-668.56893911,0.000179,2]
[405568737,1771200640551,-25000.0,0.000179,3]
[405568738,1771200640561,-160.0,0.000179,3]
[405568739,1771200640571,-7975.63597295,0.000179,2]
[405568740,1771200640582,-4744.75074478,0.000179,3]
[405568741,1771200640592,-2054.8615801,0.000179,2]
[405568742,1771200640603,-824.42202279,0.000179,2]
[405568743,1771200640614,-1249.93689798,0.000179,2]
[405568744,1771200640624,-2393.11074906,0.000179,2]
[405568745,1771200640636,-945.91379955,0.000179,2]
[405568746,1771200640652,-39660.19038128,0.000179,2]
[405568747,1771200640662,-257.74485222,0.00017972,2]
[405568748,1771200640672,-500.0,0.00017972,2]
[405568749,1771200640683,-500.0,0.00017972,2]
[405568750,1771200640694,-500.0,0.00017972,2]
[405568751,1771200640705,-549.113752,0.00017972,2]
[405568752,1771200640716,-500.0,0.00017972,2]
[405568753,1771200640728,-500.0,0.00017972,2]
[405568754,1771200640738,-500.0,0.00017972,2]
[405568755,1771200640749,-500.0,0.00017972,2]
[405568756,1771200640760,-500.0,0.00017972,2]
[405568757,1771200640771,-500.0,0.00017972,2]
[405568758,1771200640781,-500.0,0.00017972,2]
[405568759,1771200640791,-500.0,0.00017972,2]
[405568760,1771200640802,-500.0,0.00017972,2]
[405568761,1771200640812,-500.0,0.00017972,2]
[405568763,1771200640822,-272.02122322,0.00017972,2]
[405568764,1771200640833,-500.0,0.00017972,2]
[405568765,1771200640844,-500.0,0.00017972,2]
[405568766,1771200640856,-94914.0,0.00017973,2]
[405568767,1771200640866,-7226.0,0.00017973,2]
[405568768,1771200640876,-502.4210461,0.00017973,2]
[405568769,1771200640886,-500.0,0.00017973,2]
[405568770,1771200640896,-301.49033758,0.00017973,2]
[405568771,1771200640906,-500.0,0.00017973,2]
[405568772,1771200640916,-500.66015675,0.00017973,2]
[405568773,1771200640926,-502.13057792,0.00017973,2]
[405568774,1771200640936,-594.94167008,0.00017973,2]
[405568775,1771200640947,-500.0,0.00017973,2]